[Event "Titled Tuesday Blitz May 2 Early 2023"]
[White "Pourkashiyan, Atousa"]
[Black "Janaszak, Dawid"]
[WhiteFideId "12502014"]
[BlackFideId "1119206"]
[WhiteElo "2228"]
[BlackElo "2220"]
[Result "1-0"]
[Round "05"]
[TimeControl "180+2"]
[Date "2023.05.02"]
[WhiteClock "0:00:04"]
[BlackClock "0:00:25"]

1. e4 {[%clk 0:02:24]}  c5 {[%clk 0:02:59]} 2. Nf3 {[%clk 0:02:23]}  Nc6 {[%clk 0:03:00]} 3. d4 {[%clk 0:02:23]}  cxd4 {[%clk 0:03:01]} 4. Nxd4 {[%clk 0:02:24]}  g6 {[%clk 0:03:01]} 5. c4 {[%clk 0:02:23]}  Bg7 {[%clk 0:03:01]} 6. Be3 {[%clk 0:02:23]}  Qb6 {[%clk 0:03:02]} 7. Nb3 {[%clk 0:02:19]}  Qd8 {[%clk 0:03:00]} 8. Nc3 {[%clk 0:02:18]}  Bxc3+ {[%clk 0:03:00]} 9. bxc3 {[%clk 0:02:19]}  Nf6 {[%clk 0:03:00]} 10. f3 {[%clk 0:02:18]}  d6 {[%clk 0:02:59]} 11. Be2 {[%clk 0:02:18]}  b6 {[%clk 0:02:57]} 12. Bh6 {[%clk 0:02:15]}  Rg8 {[%clk 0:02:55]} 13. Qd2 {[%clk 0:02:12]}  Be6 {[%clk 0:02:54]} 14. Nd4 {[%clk 0:02:09]}  Ne5 {[%clk 0:02:41]} 15. Nxe6 {[%clk 0:02:04]}  fxe6 {[%clk 0:02:42]} 16. Bf4 {[%clk 0:02:02]}  Nfd7 {[%clk 0:02:35]} 17. O-O {[%clk 0:01:48]}  Qc7 {[%clk 0:02:35]} 18. a4 {[%clk 0:01:33]}  Nxc4 {[%clk 0:02:29]} 19. Qa2 {[%clk 0:01:34]}  Rc8 {[%clk 0:02:03]} 20. Rfd1 {[%clk 0:01:27]}  g5 {[%clk 0:02:01]} 21. Bg3 {[%clk 0:01:15]}  h5 {[%clk 0:01:52]} 22. Rd4 {[%clk 0:01:14]}  Qc5 {[%clk 0:01:16]} 23. Qxc4 {[%clk 0:01:11]}  Kf7 {[%clk 0:00:54]} 24. Qxc5 {[%clk 0:00:59]}  Rxc5 {[%clk 0:00:53]} 25. Rc4 {[%clk 0:00:53]}  Rgc8 {[%clk 0:00:51]} 26. Rxc5 {[%clk 0:00:51]}  Nxc5 {[%clk 0:00:51]} 27. Bc4 {[%clk 0:00:42]}  Nd7 {[%clk 0:00:46]} 28. Bb5 {[%clk 0:00:39]}  Nf8 {[%clk 0:00:39]} 29. Be1 {[%clk 0:00:36]}  d5 {[%clk 0:00:36]} 30. a5 {[%clk 0:00:26]}  Rc5 {[%clk 0:00:32]} 31. axb6 {[%clk 0:00:22]}  axb6 {[%clk 0:00:33]} 32. Rb1 {[%clk 0:00:19]}  Ng6 {[%clk 0:00:31]} 33. exd5 {[%clk 0:00:16]}  exd5 {[%clk 0:00:31]} 34. Bd7 {[%clk 0:00:15]}  Ne5 {[%clk 0:00:29]} 35. Ba4 {[%clk 0:00:14]}  Ra5 {[%clk 0:00:28]} 36. Bd1 {[%clk 0:00:13]}  b5 {[%clk 0:00:26]} 37. c4 {[%clk 0:00:13]}  Ra2 {[%clk 0:00:25]} 38. cxb5 {[%clk 0:00:13]}  Nd3 {[%clk 0:00:25]} 39. Bg3 {[%clk 0:00:06]}  h4 {[%clk 0:00:23]} 40. b6 {[%clk 0:00:05]}  Nc5 {[%clk 0:00:22]} 41. b7 {[%clk 0:00:05]}  Nxb7 {[%clk 0:00:22]} 42. Rxb7 {[%clk 0:00:05]}  hxg3 {[%clk 0:00:23]} 43. Rb1 {[%clk 0:00:04]}  gxh2+ {[%clk 0:00:22]} 44. Kxh2 {[%clk 0:00:05]}  Rd2 {[%clk 0:00:20]} 45. Kg3 {[%clk 0:00:05]}  Kf6 {[%clk 0:00:20]} 46. Bb3 {[%clk 0:00:05]}  e6 {[%clk 0:00:20]} 47. Re1 {[%clk 0:00:05]}  Rb2 {[%clk 0:00:20]} 48. Re3 {[%clk 0:00:05]}  Rd2 {[%clk 0:00:19]} 49. Ba4 {[%clk 0:00:04]}  Ra2 {[%clk 0:00:18]} 50. Bd7 {[%clk 0:00:04]}  Rd2 {[%clk 0:00:19]} 51. Rxe6+ {[%clk 0:00:03]}  Kf7 {[%clk 0:00:19]} 52. Re5 {[%clk 0:00:04]}  d4 {[%clk 0:00:20]} 53. Rxg5 {[%clk 0:00:04]}  Ke7 {[%clk 0:00:21]} 54. Rd5 {[%clk 0:00:04]}  d3 {[%clk 0:00:20]} 55. Bf5 {[%clk 0:00:04]}  Rb2 {[%clk 0:00:20]} 56. Rxd3 {[%clk 0:00:04]}  Rb4 {[%clk 0:00:21]} 57. Be4 {[%clk 0:00:04]}  Kf6 {[%clk 0:00:22]} 58. Kf4 {[%clk 0:00:05]}  Rb8 {[%clk 0:00:22]} 59. Rd6+ {[%clk 0:00:05]}  Ke7 {[%clk 0:00:23]} 60. Rh6 {[%clk 0:00:05]}  Rf8+ {[%clk 0:00:24]} 61. Ke3 {[%clk 0:00:05]}  Rh8 {[%clk 0:00:25]} 62. Rxh8 {[%clk 0:00:04]} 1-0


[Site "https://www.chess.com"]

[Event "Titled Tuesday Blitz May 2 Early 2023"]
[White "Vedder, Richard"]
[Black "Budrewicz, Krzysztof"]
[WhiteFideId "1004166"]
[BlackFideId "1127950"]
[WhiteElo "2168"]
[BlackElo "2230"]
[Result "0-1"]
[Round "05"]
[TimeControl "180+2"]
[Date "2023.05.02"]
[WhiteClock "0:01:25"]
[BlackClock "0:00:28"]

1. d4 {[%clk 0:03:00]}  Nf6 {[%clk 0:02:59]} 2. c4 {[%clk 0:03:00]}  g6 {[%clk 0:02:59]} 3. Nc3 {[%clk 0:03:00]}  Bg7 {[%clk 0:03:00]} 4. e4 {[%clk 0:03:00]}  O-O {[%clk 0:03:00]} 5. Nf3 {[%clk 0:03:01]}  d6 {[%clk 0:03:00]} 6. Be2 {[%clk 0:03:01]}  Nbd7 {[%clk 0:03:00]} 7. O-O {[%clk 0:03:01]}  e5 {[%clk 0:03:01]} 8. d5 {[%clk 0:03:01]}  Nc5 {[%clk 0:03:00]} 9. Qc2 {[%clk 0:03:02]}  a5 {[%clk 0:03:01]} 10. Bg5 {[%clk 0:03:02]}  h6 {[%clk 0:03:00]} 11. Be3 {[%clk 0:03:02]}  b6 {[%clk 0:02:59]} 12. Nd2 {[%clk 0:03:02]}  Bd7 {[%clk 0:02:59]} 13. b3 {[%clk 0:03:01]}  Ng4 {[%clk 0:02:57]} 14. Bxg4 {[%clk 0:03:00]}  Bxg4 {[%clk 0:02:57]} 15. a3 {[%clk 0:03:01]}  Bc8 {[%clk 0:02:48]} 16. b4 {[%clk 0:02:58]}  Nd7 {[%clk 0:02:48]} 17. Nb3 {[%clk 0:02:51]}  f5 {[%clk 0:02:44]} 18. f3 {[%clk 0:02:50]}  Nf6 {[%clk 0:02:43]} 19. c5 {[%clk 0:02:48]}  axb4 {[%clk 0:02:34]} 20. axb4 {[%clk 0:02:48]}  Rxa1 {[%clk 0:02:35]} 21. Rxa1 {[%clk 0:02:48]}  fxe4 {[%clk 0:02:36]} 22. fxe4 {[%clk 0:02:46]}  Ng4 {[%clk 0:02:36]} 23. Qe2 {[%clk 0:02:39]}  bxc5 {[%clk 0:02:30]} 24. bxc5 {[%clk 0:02:38]}  Qh4 {[%clk 0:02:29]} 25. h3 {[%clk 0:02:36]}  Nxe3 {[%clk 0:02:25]} 26. Qxe3 {[%clk 0:02:37]}  h5 {[%clk 0:02:24]} 27. c6 {[%clk 0:02:31]}  Bf6 {[%clk 0:02:02]} 28. Rf1 {[%clk 0:02:28]}  Bg5 {[%clk 0:01:58]} 29. Rxf8+ {[%clk 0:02:28]}  Kxf8 {[%clk 0:01:58]} 30. Qf2+ {[%clk 0:02:28]}  Qxf2+ {[%clk 0:01:51]} 31. Kxf2 {[%clk 0:02:29]}  Ke7 {[%clk 0:01:45]} 32. Na5 {[%clk 0:02:28]}  Ba6 {[%clk 0:01:40]} 33. Nd1 {[%clk 0:02:22]}  Bd2 {[%clk 0:01:34]} 34. Nb7 {[%clk 0:02:22]}  h4 {[%clk 0:01:27]} 35. Ne3 {[%clk 0:02:20]}  Bxe3+ {[%clk 0:01:13]} 36. Kxe3 {[%clk 0:02:20]}  Kf6 {[%clk 0:01:12]} 37. Kf3 {[%clk 0:02:18]}  Kg5 {[%clk 0:01:08]} 38. Nd8 {[%clk 0:02:18]}  Bc8 {[%clk 0:01:07]} 39. g4 {[%clk 0:02:10]}  Kf6 {[%clk 0:00:57]} 40. Nb7 {[%clk 0:02:09]}  Ke7 {[%clk 0:00:54]} 41. Na5 {[%clk 0:02:07]}  Ba6 {[%clk 0:00:53]} 42. Nb3 {[%clk 0:01:59]}  Bf1 {[%clk 0:00:50]} 43. Nd2 {[%clk 0:01:59]}  Bxh3 {[%clk 0:00:45]} 44. g5 {[%clk 0:01:58]}  Bc8 {[%clk 0:00:40]} 45. Nf1 {[%clk 0:01:58]}  Ba6 {[%clk 0:00:40]} 46. Nd2 {[%clk 0:01:52]}  Bc8 {[%clk 0:00:35]} 47. Nf1 {[%clk 0:01:51]}  Bh3 {[%clk 0:00:35]} 48. Nd2 {[%clk 0:01:48]}  Kd8 {[%clk 0:00:36]} 49. Nc4 {[%clk 0:01:47]}  Kc8 {[%clk 0:00:36]} 50. Nd2 {[%clk 0:01:46]}  Kb8 {[%clk 0:00:36]} 51. Nc4 {[%clk 0:01:44]}  Ka7 {[%clk 0:00:36]} 52. Nd2 {[%clk 0:01:42]}  Kb6 {[%clk 0:00:36]} 53. Nc4+ {[%clk 0:01:38]}  Kb5 {[%clk 0:00:36]} 54. Ne3 {[%clk 0:01:37]}  Kc5 {[%clk 0:00:34]} 55. Nc2 {[%clk 0:01:34]}  Bf1 {[%clk 0:00:28]} 56. Ne3 {[%clk 0:01:30]}  Bd3 {[%clk 0:00:28]} 57. Nd1 {[%clk 0:01:25]}  Kd4 {[%clk 0:00:28]} 58. Nf2 {[%clk 0:01:25]}  Bc2 {[%clk 0:00:28]} 0-1


[Site "https://www.chess.com"]

[Event "Titled Tuesday Blitz May 2 Early 2023"]
[White "Xie, Bryan"]
[Black "Shohat, Yotam"]
[WhiteFideId "30941296"]
[BlackFideId "2813955"]
[WhiteElo "2033"]
[BlackElo "2226"]
[Result "0-1"]
[Round "05"]
[TimeControl "180+2"]
[Date "2023.05.02"]
[WhiteClock "0:00:41"]
[BlackClock "0:01:18"]

1. d4 {[%clk 0:03:00]}  Nf6 {[%clk 0:02:59]} 2. Nf3 {[%clk 0:03:01]}  c5 {[%clk 0:02:58]} 3. d5 {[%clk 0:02:59]}  e6 {[%clk 0:02:58]} 4. c4 {[%clk 0:02:59]}  exd5 {[%clk 0:02:58]} 5. cxd5 {[%clk 0:03:00]}  d6 {[%clk 0:02:59]} 6. Nc3 {[%clk 0:02:57]}  g6 {[%clk 0:02:59]} 7. e4 {[%clk 0:02:49]}  a6 {[%clk 0:02:58]} 8. a4 {[%clk 0:02:49]}  Bg4 {[%clk 0:02:57]} 9. h3 {[%clk 0:02:44]}  Bxf3 {[%clk 0:02:55]} 10. Qxf3 {[%clk 0:02:45]}  Bg7 {[%clk 0:02:54]} 11. Bd3 {[%clk 0:02:46]}  O-O {[%clk 0:02:52]} 12. O-O {[%clk 0:02:46]}  Nbd7 {[%clk 0:02:53]} 13. Qe2 {[%clk 0:02:46]}  Re8 {[%clk 0:02:51]} 14. Bf4 {[%clk 0:02:41]}  Ne5 {[%clk 0:02:40]} 15. Bc2 {[%clk 0:02:41]}  Qb6 {[%clk 0:02:36]} 16. Rab1 {[%clk 0:02:38]}  Qb4 {[%clk 0:02:13]} 17. Bh2 {[%clk 0:02:30]}  Qc4 {[%clk 0:01:56]} 18. Qxc4 {[%clk 0:02:09]}  Nxc4 {[%clk 0:01:57]} 19. Rfe1 {[%clk 0:02:10]}  Nd7 {[%clk 0:01:52]} 20. Red1 {[%clk 0:01:48]}  Be5 {[%clk 0:01:36]} 21. b3 {[%clk 0:01:28]}  Na3 {[%clk 0:01:22]} 22. Bxe5 {[%clk 0:00:39]}  Nxb1 {[%clk 0:01:20]} 23. Bxd6 {[%clk 0:00:40]}  Nxc3 {[%clk 0:01:20]} 24. Re1 {[%clk 0:00:41]}  Nxd5 {[%clk 0:01:18]} 0-1


[Site "https://www.chess.com"]

[Event "Titled Tuesday Blitz May 2 Early 2023"]
[White "Demin, Vladimir"]
[Black "Shtompel, Yuriy"]
[WhiteFideId "4167457"]
[BlackFideId "14168278"]
[WhiteElo "2430"]
[BlackElo "1844"]
[Result "1-0"]
[Round "05"]
[TimeControl "180+2"]
[Date "2023.05.02"]
[WhiteClock "0:01:30"]
[BlackClock "0:00:21"]

1. d4 {[%clk 0:02:49]}  Nf6 {[%clk 0:02:59]} 2. Nc3 {[%clk 0:02:47]}  d5 {[%clk 0:02:57]} 3. Bf4 {[%clk 0:02:47]}  a6 {[%clk 0:02:53]} 4. e3 {[%clk 0:02:47]}  c5 {[%clk 0:02:50]} 5. dxc5 {[%clk 0:02:48]}  Nc6 {[%clk 0:02:48]} 6. a3 {[%clk 0:02:48]}  Bf5 {[%clk 0:02:23]} 7. b4 {[%clk 0:02:47]}  e6 {[%clk 0:02:20]} 8. Nf3 {[%clk 0:02:45]}  h6 {[%clk 0:02:19]} 9. h3 {[%clk 0:02:45]}  Be7 {[%clk 0:02:18]} 10. Bd3 {[%clk 0:02:37]}  Bxd3 {[%clk 0:02:15]} 11. Qxd3 {[%clk 0:02:38]}  O-O {[%clk 0:02:15]} 12. O-O {[%clk 0:02:37]}  a5 {[%clk 0:01:48]} 13. b5 {[%clk 0:02:29]}  Na7 {[%clk 0:01:48]} 14. Na4 {[%clk 0:02:28]}  Nd7 {[%clk 0:01:20]} 15. b6 {[%clk 0:02:07]}  Nc6 {[%clk 0:01:18]} 16. Bc7 {[%clk 0:02:02]}  Qc8 {[%clk 0:01:14]} 17. Nd4 {[%clk 0:02:02]}  Nxc5 {[%clk 0:01:00]} 18. Nxc5 {[%clk 0:02:00]}  Bxc5 {[%clk 0:01:00]} 19. Nxc6 {[%clk 0:02:01]}  bxc6 {[%clk 0:01:00]} 20. c4 {[%clk 0:02:01]}  Qa6 {[%clk 0:00:55]} 21. Rab1 {[%clk 0:01:58]}  Qb7 {[%clk 0:00:47]} 22. Rfc1 {[%clk 0:01:54]}  Ra6 {[%clk 0:00:37]} 23. cxd5 {[%clk 0:01:54]}  Bxb6 {[%clk 0:00:37]} 24. Rxc6 {[%clk 0:01:48]}  exd5 {[%clk 0:00:30]} 25. Rcxb6 {[%clk 0:01:47]}  Rxb6 {[%clk 0:00:29]} 26. Bxb6 {[%clk 0:01:44]}  Rb8 {[%clk 0:00:30]} 27. Rb2 {[%clk 0:01:43]}  Qc6 {[%clk 0:00:28]} 28. Bd4 {[%clk 0:01:31]}  Qc1+ {[%clk 0:00:27]} 29. Qf1 {[%clk 0:01:31]}  Qxf1+ {[%clk 0:00:19]} 30. Kxf1 {[%clk 0:01:32]}  Rc8 {[%clk 0:00:19]} 31. Rb5 {[%clk 0:01:30]}  Rc1+ {[%clk 0:00:20]} 32. Ke2 {[%clk 0:01:30]}  Rc2+ {[%clk 0:00:21]} 33. Kf3 {[%clk 0:01:30]} 1-0


[Site "https://www.chess.com"]

[Event "Titled Tuesday Blitz May 2 Early 2023"]
[White "Bogaudinov, Rushan"]
[Black "Sousa, Andre Ventura"]
[WhiteFideId "4129288"]
[BlackFideId "1917617"]
[WhiteElo "1967"]
[BlackElo "2348"]
[Result "1/2-1/2"]
[Round "05"]
[TimeControl "180+2"]
[Date "2023.05.02"]
[WhiteClock "0:00:02"]
[BlackClock "0:00:08"]

1. e4 {[%clk 0:03:00]}  c6 {[%clk 0:02:59]} 2. d4 {[%clk 0:03:00]}  d5 {[%clk 0:03:00]} 3. e5 {[%clk 0:03:00]}  Bf5 {[%clk 0:03:00]} 4. c4 {[%clk 0:03:00]}  e6 {[%clk 0:02:58]} 5. Nc3 {[%clk 0:02:59]}  Ne7 {[%clk 0:02:54]} 6. a3 {[%clk 0:02:58]}  Nd7 {[%clk 0:02:53]} 7. c5 {[%clk 0:02:58]}  f6 {[%clk 0:02:50]} 8. f4 {[%clk 0:02:55]}  b6 {[%clk 0:02:48]} 9. b4 {[%clk 0:02:55]}  a5 {[%clk 0:02:48]} 10. Be3 {[%clk 0:02:54]}  axb4 {[%clk 0:02:45]} 11. axb4 {[%clk 0:02:54]}  Rxa1 {[%clk 0:02:46]} 12. Qxa1 {[%clk 0:02:54]}  Ng6 {[%clk 0:02:40]} 13. Nf3 {[%clk 0:02:50]}  bxc5 {[%clk 0:02:34]} 14. bxc5 {[%clk 0:02:49]}  Be7 {[%clk 0:02:29]} 15. Qa6 {[%clk 0:02:40]}  fxe5 {[%clk 0:02:28]} 16. fxe5 {[%clk 0:02:37]}  O-O {[%clk 0:02:28]} 17. Be2 {[%clk 0:02:33]}  Bg4 {[%clk 0:02:11]} 18. O-O {[%clk 0:02:29]}  Nf4 {[%clk 0:02:09]} 19. Qxc6 {[%clk 0:02:17]}  Nxe2+ {[%clk 0:02:02]} 20. Nxe2 {[%clk 0:02:16]}  Nb8 {[%clk 0:01:55]} 21. Qb7 {[%clk 0:02:01]}  Rf7 {[%clk 0:01:36]} 22. Qb5 {[%clk 0:01:55]}  Qf8 {[%clk 0:01:33]} 23. Nf4 {[%clk 0:01:38]}  g5 {[%clk 0:01:25]} 24. Nd3 {[%clk 0:01:26]}  Kg7 {[%clk 0:01:14]} 25. Nde1 {[%clk 0:01:25]}  Qd8 {[%clk 0:01:03]} 26. h3 {[%clk 0:01:24]}  Bf5 {[%clk 0:01:00]} 27. Nd2 {[%clk 0:01:10]}  h5 {[%clk 0:00:57]} 28. Qe2 {[%clk 0:01:07]}  g4 {[%clk 0:00:56]} 29. hxg4 {[%clk 0:01:06]}  hxg4 {[%clk 0:00:57]} 30. Bf4 {[%clk 0:00:57]}  Nc6 {[%clk 0:00:57]} 31. Qe3 {[%clk 0:00:54]}  Qa5 {[%clk 0:00:48]} 32. g3 {[%clk 0:00:45]}  Nxd4 {[%clk 0:00:46]} 33. Bh6+ {[%clk 0:00:41]}  Kh7 {[%clk 0:00:46]} 34. Kg2 {[%clk 0:00:36]}  Bxc5 {[%clk 0:00:34]} 35. Rh1 {[%clk 0:00:34]}  Qxd2+ {[%clk 0:00:23]} 36. Qxd2 {[%clk 0:00:34]}  Be4+ {[%clk 0:00:24]} 37. Kh2 {[%clk 0:00:28]}  Nb3 {[%clk 0:00:20]} 38. Qf4 {[%clk 0:00:18]}  Rxf4 {[%clk 0:00:19]} 39. Bxf4 {[%clk 0:00:19]}  Bxh1 {[%clk 0:00:20]} 40. Kxh1 {[%clk 0:00:18]}  Kg6 {[%clk 0:00:18]} 41. Nd3 {[%clk 0:00:17]}  Kf5 {[%clk 0:00:19]} 42. Kg2 {[%clk 0:00:16]}  Ba3 {[%clk 0:00:19]} 43. Kf2 {[%clk 0:00:15]}  Ke4 {[%clk 0:00:19]} 44. Ke2 {[%clk 0:00:14]}  Nd4+ {[%clk 0:00:19]} 45. Kd2 {[%clk 0:00:14]}  Nf3+ {[%clk 0:00:19]} 46. Ke2 {[%clk 0:00:14]}  Ng1+ {[%clk 0:00:19]} 47. Kd2 {[%clk 0:00:13]}  Nh3 {[%clk 0:00:20]} 48. Bh6 {[%clk 0:00:07]}  Kf3 {[%clk 0:00:20]} 49. Bf4 {[%clk 0:00:04]}  Nxf4 {[%clk 0:00:17]} 50. Nxf4 {[%clk 0:00:04]}  Kxg3 {[%clk 0:00:17]} 51. Nxe6 {[%clk 0:00:04]}  Be7 {[%clk 0:00:16]} 52. Ke3 {[%clk 0:00:03]}  Kh2 {[%clk 0:00:16]} 53. Kd4 {[%clk 0:00:03]}  g3 {[%clk 0:00:13]} 54. Nf4 {[%clk 0:00:03]}  Bg5 {[%clk 0:00:13]} 55. Ne2 {[%clk 0:00:01]}  g2 {[%clk 0:00:13]} 56. e6 {[%clk 0:00:02]}  Kh3 {[%clk 0:00:11]} 57. Kxd5 {[%clk 0:00:01]}  Kg4 {[%clk 0:00:11]} 58. Ke4 {[%clk 0:00:02]}  Be7 {[%clk 0:00:11]} 59. Ke3 {[%clk 0:00:02]}  Bc5+ {[%clk 0:00:10]} 60. Ke4 {[%clk 0:00:02]}  Kg5 {[%clk 0:00:07]} 61. Kf3 {[%clk 0:00:02]}  Kf6 {[%clk 0:00:07]} 62. Kxg2 {[%clk 0:00:02]}  Kxe6 {[%clk 0:00:08]} 1/2-1/2


[Site "https://www.chess.com"]

[Event "Titled Tuesday Blitz May 2 Early 2023"]
[White "Bayasgalan, Khishigbaatar"]
[Black "Minko, Dmitry"]
[WhiteFideId "4904311"]
[BlackFideId "24188468"]
[WhiteElo "2057"]
[BlackElo "2147"]
[Result "1-0"]
[Round "05"]
[TimeControl "180+2"]
[Date "2023.05.02"]
[WhiteClock "0:00:11"]
[BlackClock "0:00:02"]

1. d4 {[%clk 0:03:00]}  d5 {[%clk 0:02:59]} 2. c4 {[%clk 0:03:01]}  e6 {[%clk 0:03:00]} 3. Nc3 {[%clk 0:03:01]}  Be7 {[%clk 0:03:00]} 4. Bf4 {[%clk 0:02:57]}  Nf6 {[%clk 0:03:00]} 5. e3 {[%clk 0:02:57]}  O-O {[%clk 0:02:59]} 6. Nf3 {[%clk 0:02:57]}  c5 {[%clk 0:03:00]} 7. Be2 {[%clk 0:02:55]}  dxc4 {[%clk 0:02:56]} 8. Bxc4 {[%clk 0:02:54]}  a6 {[%clk 0:02:55]} 9. dxc5 {[%clk 0:02:52]}  Bxc5 {[%clk 0:02:53]} 10. O-O {[%clk 0:02:40]}  b5 {[%clk 0:02:53]} 11. Be2 {[%clk 0:02:40]}  Bb7 {[%clk 0:02:40]} 12. Qxd8 {[%clk 0:02:40]}  Rxd8 {[%clk 0:02:40]} 13. Bg5 {[%clk 0:02:40]}  Nbd7 {[%clk 0:02:34]} 14. Rfd1 {[%clk 0:02:35]}  h6 {[%clk 0:02:33]} 15. Bh4 {[%clk 0:02:35]}  Nb6 {[%clk 0:02:11]} 16. Rac1 {[%clk 0:02:20]}  Bb4 {[%clk 0:01:32]} 17. Nd4 {[%clk 0:02:13]}  Rac8 {[%clk 0:01:26]} 18. Nb1 {[%clk 0:01:51]}  Be4 {[%clk 0:01:09]} 19. f3 {[%clk 0:01:38]}  Bg6 {[%clk 0:01:05]} 20. Kf2 {[%clk 0:01:28]}  Na4 {[%clk 0:00:44]} 21. b3 {[%clk 0:01:04]}  Nb2 {[%clk 0:00:22]} 22. Rf1 {[%clk 0:00:40]}  Nd3+ {[%clk 0:00:10]} 23. Bxd3 {[%clk 0:00:39]}  Bxd3 {[%clk 0:00:11]} 24. Rfd1 {[%clk 0:00:39]}  Rxc1 {[%clk 0:00:06]} 25. Rxc1 {[%clk 0:00:38]}  Bxb1 {[%clk 0:00:06]} 26. Rxb1 {[%clk 0:00:38]}  e5 {[%clk 0:00:07]} 27. Nc6 {[%clk 0:00:32]}  Rd2+ {[%clk 0:00:07]} 28. Kg3 {[%clk 0:00:31]}  Bc5 {[%clk 0:00:07]} 29. Nxe5 {[%clk 0:00:26]}  g5 {[%clk 0:00:06]} 30. Bxg5 {[%clk 0:00:21]}  hxg5 {[%clk 0:00:06]} 31. Kh3 {[%clk 0:00:21]}  Bxe3 {[%clk 0:00:06]} 32. a4 {[%clk 0:00:20]}  Nd5 {[%clk 0:00:05]} 33. g3 {[%clk 0:00:18]}  f6 {[%clk 0:00:04]} 34. Ng4 {[%clk 0:00:17]}  b4 {[%clk 0:00:03]} 35. Re1 {[%clk 0:00:14]}  Bd4 {[%clk 0:00:03]} 36. Re4 {[%clk 0:00:13]}  Bc3 {[%clk 0:00:01]} 37. Re6 {[%clk 0:00:11]}  Kf7 {[%clk 0:00:02]} 38. Rxa6 {[%clk 0:00:11]}  Rb2 {[%clk 0:00:01]} 39. Rd6 {[%clk 0:00:10]}  Ne3 {[%clk 0:00:01]} 40. Nxe3 {[%clk 0:00:09]}  Rxb3 {[%clk 0:00:02]} 41. Nd5 {[%clk 0:00:09]}  Ra3 {[%clk 0:00:02]} 42. Rc6 {[%clk 0:00:07]}  Rxa4 {[%clk 0:00:01]} 43. Nxc3 {[%clk 0:00:07]}  bxc3 {[%clk 0:00:02]} 44. Rxc3 {[%clk 0:00:08]}  Ra2 {[%clk 0:00:02]} 45. Rc7+ {[%clk 0:00:06]}  Kg6 {[%clk 0:00:03]} 46. g4 {[%clk 0:00:07]}  Ra3 {[%clk 0:00:03]} 47. Kg3 {[%clk 0:00:07]}  Ra2 {[%clk 0:00:04]} 48. h3 {[%clk 0:00:07]}  Ra1 {[%clk 0:00:04]} 49. Rc6 {[%clk 0:00:07]}  Rg1+ {[%clk 0:00:04]} 50. Kf2 {[%clk 0:00:08]}  Ra1 {[%clk 0:00:05]} 51. Kg2 {[%clk 0:00:09]}  Ra2+ {[%clk 0:00:06]} 52. Kg3 {[%clk 0:00:09]}  Ra7 {[%clk 0:00:06]} 53. h4 {[%clk 0:00:09]}  gxh4+ {[%clk 0:00:06]} 54. Kxh4 {[%clk 0:00:09]}  Rh7+ {[%clk 0:00:06]} 55. Kg3 {[%clk 0:00:10]}  Rh1 {[%clk 0:00:07]} 56. f4 {[%clk 0:00:10]}  Kg7 {[%clk 0:00:06]} 57. Rc7+ {[%clk 0:00:09]}  Kg6 {[%clk 0:00:07]} 58. Rc6 {[%clk 0:00:10]}  Kg7 {[%clk 0:00:07]} 59. Kf3 {[%clk 0:00:10]}  Rh3+ {[%clk 0:00:07]} 60. Ke4 {[%clk 0:00:11]}  Rg3 {[%clk 0:00:07]} 61. Kf5 {[%clk 0:00:11]}  Rb3 {[%clk 0:00:03]} 62. Rc7+ {[%clk 0:00:11]}  Kh6 {[%clk 0:00:03]} 63. g5+ {[%clk 0:00:10]}  fxg5 {[%clk 0:00:02]} 64. fxg5+ {[%clk 0:00:11]} 1-0


[Site "https://www.chess.com"]

[Event "Titled Tuesday Blitz May 2 Early 2023"]
[White "Kalajzic, Ivan"]
[Black "Kubicka, Anna"]
[WhiteFideId "14506378"]
[BlackFideId "1152254"]
[WhiteElo "2203"]
[BlackElo "2144"]
[Result "0-1"]
[Round "05"]
[TimeControl "180+2"]
[Date "2023.05.02"]
[WhiteClock "0:00:09"]
[BlackClock "0:00:11"]

1. d4 {[%clk 0:02:53]}  Nf6 {[%clk 0:02:59]} 2. Nc3 {[%clk 0:02:53]}  e6 {[%clk 0:02:58]} 3. Bg5 {[%clk 0:02:53]}  Be7 {[%clk 0:02:58]} 4. e4 {[%clk 0:02:53]}  h6 {[%clk 0:02:57]} 5. Bxf6 {[%clk 0:02:52]}  Bxf6 {[%clk 0:02:58]} 6. f4 {[%clk 0:02:52]}  d6 {[%clk 0:02:54]} 7. Nf3 {[%clk 0:02:51]}  Nc6 {[%clk 0:02:53]} 8. Bb5 {[%clk 0:02:49]}  Bd7 {[%clk 0:02:51]} 9. Qd2 {[%clk 0:02:46]}  a6 {[%clk 0:02:50]} 10. Ba4 {[%clk 0:02:44]}  b5 {[%clk 0:02:49]} 11. Bb3 {[%clk 0:02:44]}  O-O {[%clk 0:02:47]} 12. O-O {[%clk 0:02:33]}  Na5 {[%clk 0:02:45]} 13. e5 {[%clk 0:02:30]}  Nxb3 {[%clk 0:02:44]} 14. axb3 {[%clk 0:02:30]}  Be7 {[%clk 0:02:43]} 15. Ne4 {[%clk 0:02:17]}  Bc6 {[%clk 0:02:40]} 16. Rae1 {[%clk 0:02:16]}  Bxe4 {[%clk 0:02:39]} 17. Rxe4 {[%clk 0:02:16]}  d5 {[%clk 0:02:40]} 18. Re2 {[%clk 0:02:15]}  c5 {[%clk 0:02:38]} 19. c3 {[%clk 0:02:10]}  cxd4 {[%clk 0:02:35]} 20. Nxd4 {[%clk 0:02:09]}  Bc5 {[%clk 0:02:35]} 21. f5 {[%clk 0:02:07]}  exf5 {[%clk 0:02:34]} 22. Rxf5 {[%clk 0:02:05]}  Qd7 {[%clk 0:02:31]} 23. Ref2 {[%clk 0:01:58]}  Rae8 {[%clk 0:02:27]} 24. Qf4 {[%clk 0:01:56]}  Bxd4 {[%clk 0:02:21]} 25. cxd4 {[%clk 0:01:55]}  Re6 {[%clk 0:02:16]} 26. g4 {[%clk 0:01:48]}  Rg6 {[%clk 0:02:14]} 27. h4 {[%clk 0:01:35]}  Qe7 {[%clk 0:02:00]} 28. h5 {[%clk 0:01:30]}  Rc6 {[%clk 0:01:31]} 29. g5 {[%clk 0:01:25]}  hxg5 {[%clk 0:01:31]} 30. Rxg5 {[%clk 0:01:25]}  Kh8 {[%clk 0:01:30]} 31. Rfg2 {[%clk 0:01:09]}  Rg8 {[%clk 0:01:28]} 32. Qg4 {[%clk 0:00:56]}  Qf8 {[%clk 0:01:07]} 33. Kh2 {[%clk 0:00:48]}  Rh6 {[%clk 0:01:07]} 34. Rf2 {[%clk 0:00:45]}  Qe8 {[%clk 0:00:43]} 35. Kg2 {[%clk 0:00:45]}  Qe7 {[%clk 0:00:29]} 36. Rgf5 {[%clk 0:00:39]}  f6 {[%clk 0:00:26]} 37. Qf3 {[%clk 0:00:30]}  fxe5 {[%clk 0:00:25]} 38. Rxe5 {[%clk 0:00:31]}  Qh4 {[%clk 0:00:24]} 39. Qh3 {[%clk 0:00:16]}  Qxd4 {[%clk 0:00:22]} 40. Ref5 {[%clk 0:00:14]}  Qe4+ {[%clk 0:00:21]} 41. Qf3 {[%clk 0:00:14]}  Qh4 {[%clk 0:00:18]} 42. Qh3 {[%clk 0:00:14]}  Qxh3+ {[%clk 0:00:15]} 43. Kxh3 {[%clk 0:00:15]}  g6 {[%clk 0:00:15]} 44. Rg5 {[%clk 0:00:10]}  gxh5 {[%clk 0:00:13]} 45. Rxg8+ {[%clk 0:00:10]}  Kxg8 {[%clk 0:00:14]} 46. Rf5 {[%clk 0:00:10]}  Rd6 {[%clk 0:00:13]} 47. Rxh5 {[%clk 0:00:10]}  d4 {[%clk 0:00:14]} 48. Rg5+ {[%clk 0:00:10]}  Kf7 {[%clk 0:00:14]} 49. Rg1 {[%clk 0:00:11]}  d3 {[%clk 0:00:14]} 50. Rd1 {[%clk 0:00:12]}  Ke6 {[%clk 0:00:13]} 51. Kg3 {[%clk 0:00:13]}  Rd4 {[%clk 0:00:11]} 52. Kf3 {[%clk 0:00:13]}  Kd5 {[%clk 0:00:11]} 53. Ke3 {[%clk 0:00:14]}  Kc5 {[%clk 0:00:11]} 54. Kd2 {[%clk 0:00:13]}  Kb4 {[%clk 0:00:11]} 55. Ra1 {[%clk 0:00:11]}  a5 {[%clk 0:00:11]} 56. Ra2 {[%clk 0:00:10]}  Rd7 {[%clk 0:00:11]} 57. Ra3 {[%clk 0:00:10]}  Rd5 {[%clk 0:00:11]} 58. Ra2 {[%clk 0:00:10]}  Kxb3 {[%clk 0:00:11]} 59. Rxa5 {[%clk 0:00:09]}  Kxb2 {[%clk 0:00:11]} 60. Rxb5+ {[%clk 0:00:09]}  Rxb5 {[%clk 0:00:11]} 0-1


[Site "https://www.chess.com"]